lending/lending_fUSD_20250210
["ID","MTS","AMOUNT","RATE_DAILY","PERIOD"]
[352645600,1739217038003,-500.0,0.00010958,2]
[352645601,1739217038012,-621.67,0.00010958,2]
[352645603,1739217038022,-621.67,0.00010958,2]
[352645604,1739217038031,-621.67,0.00010958,2]
[352645606,1739217038040,-621.67,0.00010958,2]
[352645608,1739217038049,-621.67,0.00010958,2]
[352645610,1739217038059,-621.67,0.00010958,2]
[352645612,1739217038068,-500.0,0.00010958,2]
[352645614,1739217038076,-621.67,0.00010958,2]
[352645616,1739217038087,-621.67,0.00010958,2]
[352645618,1739217038096,-621.67,0.00010958,2]
[352645620,1739217038105,-500.0,0.00010958,2]
[352645622,1739217038114,-621.67,0.00010958,2]
[352645624,1739217038123,-621.67,0.00010958,2]
[352645626,1739217038133,-621.67,0.00010958,2]
[352645628,1739217038142,-621.67,0.00010958,2]
[352645630,1739217038151,-621.67,0.00010958,2]
[352645632,1739217038160,-621.67,0.00010958,2]
[352645634,1739217038169,-621.67,0.00010958,2]
[352645636,1739217038179,-621.67,0.00010958,2]
[352645638,1739217038188,-621.76,0.00010958,2]
[352645640,1739217038197,-263.33677556,0.00010958,2]
[352645642,1739217038206,-500.0,0.00010958,2]
[352645644,1739217038215,-500.0,0.00010958,2]
[352645646,1739217038224,-507.4633239,0.00010958,2]
[352645648,1739217038233,-500.0,0.00010958,2]
[352645650,1739217038244,-500.0,0.00010958,2]
[352645652,1739217038253,-500.0,0.00010958,2]
[352645654,1739217038263,-563.44863153,0.00010958,2]
[352645656,1739217038272,-500.0,0.00010958,2]
[352645658,1739217038281,-500.0,0.00010958,2]
[352645660,1739217038290,-797.43,0.00010958,2]
[352645662,1739217038299,-500.0,0.00010958,2]
[352645664,1739217038308,-503.81,0.00010958,2]
[352645666,1739217038317,-500.0,0.00010958,2]
[352645668,1739217038326,-688.07,0.00010958,2]
[352645670,1739217038335,-500.0,0.00010958,2]
[352645672,1739217038344,-601.11122221,0.00010958,2]
[352645674,1739217038354,-500.0,0.00010958,2]
[352645676,1739217038363,-500.0,0.00010958,2]
[352645678,1739217038372,-1205.84,0.00010958,2]
[352645680,1739217038381,-500.0,0.00010958,2]
[352645682,1739217038390,-500.0,0.00010958,2]
[352645684,1739217038399,-500.0,0.00010958,2]
[352645686,1739217038408,-500.0,0.00010958,2]
[352645688,1739217038417,-500.0,0.00010958,2]
[352645690,1739217038426,-500.0,0.00010958,2]
[352645692,1739217038435,-500.0,0.00010958,2]
[352645694,1739217038444,-806.41,0.00010958,2]
[352645696,1739217038453,-238.179977,0.00010958,2]
[352645698,1739217038462,-500.0,0.00010958,2]
[352645700,1739217038471,-500.0,0.00010958,2]
[352645702,1739217038480,-500.0,0.00010958,2]
[352645704,1739217038493,-500.0,0.00010958,2]
[352645706,1739217038502,-500.0,0.00010958,2]
[352645708,1739217038511,-500.0,0.00010958,2]
[352645710,1739217038520,-500.0,0.00010958,2]
[352645712,1739217038529,-500.0,0.00010958,2]
[352645714,1739217038541,-500.0,0.00010958,2]
[352645716,1739217038550,-500.0,0.00010958,2]
[352645718,1739217038561,-500.0,0.00010958,2]
[352645719,1739217038570,-500.0,0.00010958,2]
[352645722,1739217038582,-500.0,0.00010958,2]
[352645723,1739217038595,-500.0,0.00010958,2]
[352645725,1739217038604,-500.0,0.00010958,2]
[352645727,1739217038621,-500.0,0.00010958,2]
[352645729,1739217038631,-500.0,0.00010958,2]
[352645731,1739217038640,-500.0,0.00010958,2]
[352645733,1739217038649,-735.56,0.00010958,2]
[352645735,1739217038659,-500.0,0.00010958,2]
[352645737,1739217038668,-500.0,0.00010958,2]
[352645739,1739217038678,-500.0,0.00010958,2]
[352645741,1739217038687,-155.41,0.00010958,2]
[352645743,1739217038696,-798.49,0.00010958,2]
[352645745,1739217038706,-500.0,0.00010958,2]
[352645747,1739217038715,-500.0,0.00010958,2]
[352645749,1739217038725,-847.34,0.00010958,2]
[352645751,1739217038734,-500.0,0.00010958,2]
[352645753,1739217038744,-500.0,0.00010958,2]
[352645756,1739217038754,-500.0,0.00010958,2]
[352645758,1739217038763,-500.0,0.00010958,2]
[352645760,1739217038772,-548.6,0.00010958,2]
[352645762,1739217038782,-500.0,0.00010958,2]
[352645764,1739217038791,-500.0,0.00010958,2]
[352645766,1739217038800,-500.0,0.00010958,2]
[352645768,1739217038809,-671.06,0.00010958,2]
[352645769,1739217038818,-500.0,0.00010958,2]
[352645771,1739217038829,-500.0,0.00010958,2]
[352645773,1739217038839,-857.26,0.00010958,2]
[352645775,1739217038848,-500.0,0.00010958,2]
[352645777,1739217038857,-805.28,0.00010958,2]
[352645779,1739217038867,-737.36,0.00010958,2]
[352645781,1739217038877,-500.0,0.00010958,2]
[352645783,1739217038886,-500.0,0.00010958,2]
[352645785,1739217038895,-500.0,0.00010958,2]
[352645787,1739217038905,-500.0,0.00010958,2]
[352645789,1739217038914,-899.13,0.00010958,2]
[352645791,1739217038923,-686.24,0.00010958,2]
[352645793,1739217038932,-752.18,0.00010958,2]
[352645795,1739217038941,-500.0,0.00010958,2]
[352645797,1739217038950,-500.0,0.00010958,2]
[352645799,1739217038960,-500.0,0.00010958,2]
[352645801,1739217038969,-500.0,0.00010958,2]
[352645803,1739217038978,-500.0,0.00010958,2]
[352645805,1739217038988,-441.93123247,0.00010958,2]
[352645807,1739217038997,-500.0,0.00010958,2]
[352645809,1739217039007,-500.0,0.00010958,2]
[352645811,1739217039016,-500.0,0.00010958,2]
[352645813,1739217039026,-500.0,0.00010958,2]
[352645815,1739217039035,-505.00787977,0.00010958,2]
[352645817,1739217039045,-500.0,0.00010958,2]
[352645819,1739217039054,-500.0,0.00010958,2]
[352645821,1739217039063,-939.92,0.00010958,2]
[352645823,1739217039072,-817.55,0.00010958,2]
[352645825,1739217039082,-500.0,0.00010958,2]
[352645827,1739217039091,-993.53,0.00010958,2]
[352645829,1739217039101,-500.0,0.00010958,2]
[352645831,1739217039111,-500.0,0.00010958,2]
[352645833,1739217039120,-500.0,0.00010958,2]
[352645835,1739217039129,-500.0,0.00010958,2]
[352645837,1739217039139,-903.04,0.00010958,2]
[352645839,1739217039148,-1409.06,0.00010958,2]
[352645841,1739217039157,-500.0,0.00010958,2]
[352645843,1739217039167,-646.34,0.00010958,2]
[352645844,1739217039177,-813.76,0.00010958,2]
[352645845,1739217039189,-525.71,0.00010958,2]
[352645846,1739217039198,-501.14870882,0.00010958,2]
[352645847,1739217039207,-458.51582006,0.00010958,2]
[352645848,1739217039217,-500.0,0.00010958,2]
[352645849,1739217039226,-500.0,0.00010958,2]
[352645850,1739217039236,-500.0,0.00010958,2]
[352645852,1739217039246,-500.0,0.00010958,2]
[352645854,1739217039255,-500.0,0.00010958,2]
[352645856,1739217039264,-835.08,0.00010958,2]
[352645858,1739217039273,-500.0,0.00010958,2]
[352645860,1739217039283,-511.3411309,0.00010958,2]
[352645862,1739217039292,-500.0,0.00010958,2]
[352645864,1739217039302,-500.0,0.00010958,2]
[352645866,1739217039311,-500.0,0.00010958,2]
[352645868,1739217039321,-500.0,0.00010958,2]
[352645870,1739217039335,-500.0,0.00010958,2]
[352645872,1739217039345,-500.0,0.00010958,2]
[352645874,1739217039354,-500.0,0.00010958,2]
[352645876,1739217039363,-500.0,0.00010958,2]
[352645878,1739217039372,-541.9015636,0.00010958,2]
[352645880,1739217039382,-927.03,0.00010958,2]
[352645882,1739217039392,-500.0,0.00010958,2]
[352645884,1739217039401,-500.98481675,0.00010958,2]
[352645886,1739217039410,-1414.15,0.00010958,2]
[352645888,1739217039420,-974.35,0.00010958,2]
[352645890,1739217039429,-500.0,0.00010958,2]
[352645892,1739217039439,-500.0,0.00010958,2]
[352645894,1739217039449,-280.69706288,0.00010958,2]
[352645896,1739217039458,-500.0,0.00010958,2]
[352645898,1739217039467,-500.0,0.00010958,2]
[352645900,1739217039477,-500.0,0.00010958,2]
[352645902,1739217039487,-500.0,0.00010958,2]
[352645904,1739217039497,-1339.11,0.00010958,2]
[352645906,1739217039510,-1394.54,0.00010958,2]
[352645908,1739217039519,-500.0,0.00010958,2]
[352645910,1739217039530,-1459.18,0.00010958,2]
[352645912,1739217039542,-500.0,0.00010958,2]
[352645914,1739217039551,-500.0,0.00010958,2]
[352645916,1739217039560,-500.0,0.00010958,2]
[352645918,1739217039570,-501.3196981,0.00010958,2]
[352645920,1739217039580,-500.0,0.00010958,2]
[352645941,1739217039720,-500.0,0.00010958,2]
[352645944,1739217039738,-1307.0,0.00010958,2]
[352645946,1739217039749,-4000.0,0.00010958,2]
[352645948,1739217039759,-713.9,0.00010958,2]
[352645950,1739217039768,-500.0,0.00010958,2]
[352645951,1739217039778,-669.6,0.00010958,2]
[352645954,1739217039787,-1143.98,0.00010958,2]
[352645956,1739217039796,-500.0,0.00010958,2]
[352645958,1739217039805,-2178.95,0.00010958,2]
[352645960,1739217039815,-500.0,0.00010958,2]
[352645961,1739217039824,-524.35691591,0.00010958,2]
[352645963,1739217039833,-908.17,0.00010958,2]
[352645964,1739217039843,-792.5,0.00010958,2]
[352645966,1739217039852,-500.0,0.00010958,2]
[352645967,1739217039861,-709.69,0.00010958,2]
[352645969,1739217039871,-500.0,0.00010958,2]
[352645970,1739217039880,-500.0,0.00010958,2]
[352645972,1739217039889,-913.4,0.00010958,2]
[352645974,1739217039899,-500.0,0.00010958,2]
[352645975,1739217039908,-500.0,0.00010958,2]
[352645977,1739217039918,-618.61,0.00010958,2]
[352645979,1739217039928,-500.0,0.00010958,2]
[352645980,1739217039937,-861.34,0.00010958,2]
[352645982,1739217039947,-500.0,0.00010958,2]
[352645983,1739217039956,-1380.24,0.00010958,2]
[352645985,1739217039966,-500.0,0.00010958,2]
[352645986,1739217039976,-968.54,0.00010958,2]
[352645988,1739217039986,-2373.67,0.00010958,2]
[352645990,1739217039996,-500.0,0.00010958,2]
[352645991,1739217040006,-500.0,0.00010958,2]
[352645993,1739217040015,-812.26,0.00010958,2]
[352645995,1739217040024,-500.0,0.00010958,2]
[352645996,1739217040033,-3706.07,0.00010958,2]
[352645998,1739217040042,-500.0,0.00010958,2]
[352646000,1739217040051,-715.18,0.00010958,2]
[352646001,1739217040061,-500.0,0.00010958,2]
[352646003,1739217040070,-500.0,0.00010958,2]
[352646005,1739217040079,-500.0,0.00010958,2]
[352646006,1739217040089,-500.0,0.00010958,2]
[352646008,1739217040098,-500.0,0.00010958,2]
[352646010,1739217040107,-571.93,0.00010958,2]
[352646011,1739217040117,-503.36,0.00010958,2]
[352646013,1739217040126,-500.0,0.00010958,2]
[352646015,1739217040135,-2795.86,0.00010958,2]
[352646016,1739217040147,-1463.82,0.00010958,2]
[352646018,1739217040156,-500.0,0.00010958,2]
[352646020,1739217040166,-500.0,0.00010958,2]
[352646021,1739217040176,-500.0,0.00010958,2]
[352646023,1739217040186,-500.0,0.00010958,2]
[352646025,1739217040196,-1115.84,0.00010958,2]
[352646027,1739217040206,-500.0,0.00010958,2]
[352646028,1739217040216,-500.0,0.00010958,2]
[352646030,1739217040225,-500.0,0.00010958,2]
[352646032,1739217040235,-769.96,0.00010958,2]
[352646033,1739217040245,-1713.22,0.00010958,2]
[352646035,1739217040255,-500.0,0.00010958,2]
[352646037,1739217040264,-500.0,0.00010958,2]
[352646038,1739217040274,-748.1,0.00010958,2]
[352646040,1739217040283,-500.0,0.00010958,2]
[352646042,1739217040292,-500.0,0.00010958,2]
[352646043,1739217040302,-500.0,0.00010958,2]
[352646045,1739217040311,-500.0,0.00010958,2]
[352646047,1739217040320,-500.0,0.00010958,2]
[352646049,1739217040330,-1954.18,0.00010958,2]
[352646050,1739217040339,-500.0,0.00010958,2]
[352646052,1739217040348,-500.0,0.00010958,2]
[352646054,1739217040357,-3523.07,0.00010958,2]
[352646055,1739217040366,-2674.71,0.00010958,2]
[352646057,1739217040376,-500.0,0.00010958,2]
[352646058,1739217040385,-832.11,0.00010958,2]
[352646060,1739217040394,-718.12,0.00010958,2]
[352646062,1739217040403,-834.26,0.00010958,2]
[352646064,1739217040413,-500.0,0.00010958,2]
[352646065,1739217040423,-1677.1,0.00010958,2]
[352646067,1739217040432,-500.0,0.00010958,7]
[352646069,1739217040441,-1508.82,0.00010958,2]
[352646070,1739217040450,-500.0,0.00010958,2]
[352646072,1739217040459,-500.0,0.00010958,2]
[352646074,1739217040468,-2173.12,0.00010958,2]
[352646075,1739217040477,-500.0,0.00010958,2]
[352646077,1739217040487,-500.0,0.00010958,2]
[352646079,1739217040496,-637.11,0.00010958,2]
[352646080,1739217040506,-500.0,0.00010958,2]
[352646082,1739217040515,-7097.56,0.00010958,2]
[352646084,1739217040524,-500.0,0.00010958,2]
[352646086,1739217040534,-1398.39,0.00010958,2]
[352646088,1739217040547,-164.794917,0.00010958,2]
[352646090,1739217040556,-1741.14,0.00010958,2]
[352646091,1739217040569,-1398.24,0.00010958,2]
[352646092,1739217040579,-500.0,0.00010958,2]
[352646093,1739217040587,-500.0,0.00010958,2]
[352646094,1739217040596,-1494.55,0.00010958,2]
[352646095,1739217040605,-587.05,0.00010958,2]
[352646096,1739217040614,-1656.34,0.00010958,2]
[352646097,1739217040623,-500.0,0.00010958,2]
[352646098,1739217040632,-500.0,0.00010958,2]
[352646099,1739217040641,-500.0,0.00010958,2]
[352646100,1739217040650,-500.0,0.00010958,2]
[352646101,1739217040658,-500.0,0.00010958,2]
[352646102,1739217040667,-624.81,0.00010958,2]
[352646103,1739217040676,-502.64492698,0.00010958,2]
[352646104,1739217040685,-1199.22,0.00010958,2]
[352646106,1739217040694,-1979.93,0.00010958,2]
[352646108,1739217040705,-802.65,0.00010958,2]
[352646110,1739217040715,-1405.04,0.00010958,2]
[352646112,1739217040724,-500.0,0.00010958,2]
[352646114,1739217040733,-2187.78,0.00010958,2]
[352646116,1739217040742,-500.0,0.00010958,2]
[352646118,1739217040752,-1056.67,0.00010958,2]
[352646120,1739217040761,-500.0,0.00010958,2]
[352646122,1739217040770,-2701.47,0.00010958,2]
[352646124,1739217040779,-579.53078216,0.00010958,2]
[352646126,1739217040788,-595.63,0.00010958,2]
[352646127,1739217040797,-500.0,0.00010958,2]
[352646129,1739217040807,-500.0,0.00010958,2]
[352646132,1739217040816,-200.04218223,0.00010958,2]
[352646133,1739217040826,-930.08,0.00010958,2]
[352646135,1739217040835,-1147.5,0.00010958,2]
[352646137,1739217040845,-964.23,0.00010958,2]
[352646139,1739217040855,-500.0,0.00010958,2]
[352646141,1739217040865,-500.0,0.00010958,2]
[352646143,1739217040875,-500.0,0.00010958,2]
[352646145,1739217040884,-500.0,0.00010958,2]
[352646147,1739217040894,-704.54,0.00010958,2]
[352646149,1739217040903,-500.0,0.00010958,2]
[352646151,1739217040913,-500.0,0.00010958,2]
[352646153,1739217040922,-699.04,0.00010958,2]
[352646155,1739217040932,-500.0,0.00010958,2]
[352646157,1739217040942,-500.0,0.00010958,2]
[352646159,1739217040951,-963.91,0.00010958,2]
[352646161,1739217040961,-500.0,0.00010958,2]
[352646163,1739217040970,-562.5,0.00010958,2]
[352646165,1739217040980,-1797.41,0.00010958,2]
[352646167,1739217040990,-500.0,0.00010958,2]
[352646170,1739217041000,-500.0,0.00010958,2]
[352646171,1739217041009,-500.0,0.00010958,2]
[352646173,1739217041018,-500.0,0.00010958,2]
[352646175,1739217041028,-2947.91,0.00010958,2]
[352646177,1739217041037,-1804.58,0.00010958,2]
[352646179,1739217041046,-500.0,0.00010958,2]
[352646181,1739217041056,-500.0,0.00010958,2]
[352646183,1739217041065,-1036.2,0.00010958,2]
[352646186,1739217041074,-500.0,0.00010958,2]
[352646187,1739217041084,-500.0,0.00010958,2]
[352646189,1739217041093,-1449.23,0.00010958,2]
[352646191,1739217041103,-742.77,0.00010958,2]
[352646193,1739217041112,-1222.64,0.00010958,2]
[352646195,1739217041121,-500.0,0.00010958,2]
[352646197,1739217041130,-2002.97,0.00010958,2]
[352646199,1739217041139,-500.0,0.00010958,2]
[352646201,1739217041148,-500.0,0.00010958,2]
[352646203,1739217041158,-500.0,0.00010958,2]
[352646205,1739217041167,-500.0,0.00010958,2]
[352646207,1739217041176,-500.0,0.00010958,2]
[352646209,1739217041186,-796.24,0.00010958,2]
[352646211,1739217041195,-500.0,0.00010958,2]
[352646213,1739217041204,-328.65750519,0.00010958,2]
[352646215,1739217041214,-150.578915,0.00010958,2]
[352646217,1739217041223,-5930.64,0.00010958,2]
[352646219,1739217041232,-645.83,0.00010958,2]
[352646221,1739217041241,-5930.64,0.00010958,2]
[352646223,1739217041252,-5930.64,0.00010958,2]
[352646225,1739217041263,-970.47,0.00010958,2]
[352646227,1739217041272,-500.0,0.00010958,2]
[352646229,1739217041282,-5930.64,0.00010958,2]
[352646231,1739217041292,-5930.64,0.00010958,2]
[352646234,1739217041302,-5930.64,0.00010958,2]
[352646235,1739217041311,-5930.64,0.00010958,2]
[352646238,1739217041321,-625.0,0.00010958,2]
[352646240,1739217041331,-500.0,0.00010958,2]
[352646241,1739217041340,-500.0,0.00010958,2]
[352646244,1739217041349,-5930.64,0.00010958,2]
[352646246,1739217041359,-5930.64,0.00010958,2]
[352646247,1739217041368,-5930.64,0.00010958,2]
[352646250,1739217041377,-500.0,0.00010958,2]
[352646251,1739217041387,-5930.64,0.00010958,2]
[352646253,1739217041396,-5930.64,0.00010958,2]
[352646255,1739217041405,-5930.64,0.00010958,2]
[352646257,1739217041414,-500.0,0.00010958,2]
[352646259,1739217041424,-5930.64,0.00010958,2]
[352646261,1739217041433,-5930.64,0.00010958,2]
[352646263,1739217041442,-5930.64,0.00010958,2]
[352646265,1739217041451,-5930.64,0.00010958,2]
[352646267,1739217041460,-5930.64,0.00010958,2]
[352646269,1739217041469,-5930.64,0.00010958,2]
[352646271,1739217041478,-5930.64,0.00010958,2]
[352646273,1739217041488,-500.0,0.00010958,2]
[352646275,1739217041498,-500.0,0.00010958,2]
[352646277,1739217041507,-5930.64,0.00010958,2]
[352646279,1739217041516,-5930.64,0.00010958,2]
[352646281,1739217041525,-716.69,0.00010958,2]
[352646283,1739217041534,-5930.64,0.00010958,2]
[352646285,1739217041546,-5930.66,0.00010958,2]
[352646287,1739217041555,-500.0,0.00010958,2]
[352646289,1739217041565,-1648.9,0.00010958,2]
[352646291,1739217041574,-1668.82,0.00010958,2]
[352646293,1739217041585,-500.0,0.00010958,2]
[352646295,1739217041594,-503.88130421,0.00010958,2]
[352646297,1739217041604,-1844.01,0.00010958,2]
[352646299,1739217041613,-500.0,0.00010958,2]
[352646301,1739217041625,-306.94473936,0.00010958,2]
[352646303,1739217041635,-500.0,0.00010958,2]
[352646305,1739217041644,-1966.76,0.00010958,2]
[352646307,1739217041654,-500.0,0.00010958,2]
[352646309,1739217041663,-500.32,0.00010958,2]
[352646311,1739217041672,-502.99698263,0.00010958,2]
[352646313,1739217041682,-500.0,0.00010958,2]
[352646315,1739217041691,-500.0,0.00010958,2]
[352646317,1739217041701,-500.0,0.00010958,2]
[352646319,1739217041710,-500.0,0.00010958,2]
[352646321,1739217041719,-500.0,0.00010958,2]
[352646323,1739217041728,-1124.71,0.00010958,2]
[352646325,1739217041737,-706.93,0.00010958,2]
[352646327,1739217041746,-596.5552071,0.00010958,2]
[352646329,1739217041756,-500.0,0.00010958,2]
[352646331,1739217041765,-222.64776184,0.00010958,2]
[352646333,1739217041774,-500.0,0.00010958,2]
[352646335,1739217041784,-500.0,0.00010958,2]
[352646337,1739217041793,-2457.08,0.00010958,2]
[352646339,1739217041802,-500.0,0.00010958,2]
[352646341,1739217041811,-500.0,0.00010958,2]
[352646343,1739217041820,-1009.57,0.00010958,2]
[352646345,1739217041829,-500.42338837,0.00010958,2]
[352646347,1739217041838,-500.0,0.00010958,2]
[352646349,1739217041848,-2032.53,0.00010958,2]
[352646351,1739217041857,-500.0,0.00010958,2]
[352646353,1739217041866,-2081.61,0.00010958,2]
[352646355,1739217041876,-1156.44,0.00010958,2]
[352646356,1739217041885,-934.8,0.00010958,2]
[352646358,1739217041895,-583.33,0.00010958,2]
[352646360,1739217041904,-500.0,0.00010958,2]
[352646362,1739217041914,-500.0,0.00010958,2]
[352646364,1739217041924,-683.87,0.00010958,2]
[352646366,1739217041932,-500.0,0.00010958,2]
[352646368,1739217041941,-810.76,0.00010958,2]
[352646370,1739217041951,-500.0,0.00010958,2]
[352646372,1739217041960,-576.07,0.00010958,2]
[352646374,1739217041969,-1603.74,0.00010958,2]
[352646376,1739217041978,-504.17738707,0.00010958,2]
[352646378,1739217041987,-500.0,0.00010958,2]
[352646380,1739217041998,-1979.23,0.00010958,2]
[352646382,1739217042007,-520.83,0.00010958,2]
[352646384,1739217042017,-3155.5,0.00010958,2]
[352646386,1739217042027,-500.0,0.00010958,2]
[352646388,1739217042036,-503.04461501,0.00010958,2]
[352646390,1739217042045,-2265.86,0.00010958,2]
[352646392,1739217042054,-1747.24,0.00010958,2]
[352646394,1739217042063,-2237.83,0.00010958,2]
[352646396,1739217042073,-504.71485391,0.00010958,2]
[352646398,1739217042082,-500.0,0.00010958,2]
[352646400,1739217042091,-1675.96,0.00010958,2]
[352646402,1739217042100,-500.0,0.00010958,2]
[352646404,1739217042110,-500.0,0.00010958,2]
[352646406,1739217042119,-500.0,0.00010958,2]
[352646408,1739217042129,-500.0,0.00010958,2]
[352646410,1739217042139,-500.0,0.00010958,2]
[352646412,1739217042148,-1819.33,0.00010958,2]
[352646414,1739217042157,-500.0,0.00010958,2]
[352646416,1739217042166,-500.0,0.00010958,2]
[352646418,1739217042176,-500.0,0.00010958,2]
[352646420,1739217042185,-500.0,0.00010958,2]
[352646422,1739217042194,-541.66,0.00010958,2]
[352646423,1739217042203,-1574.7,0.00010958,2]
[352646425,1739217042212,-530.6,0.00010958,2]
[352646427,1739217042221,-502.02908158,0.00010958,2]
[352646429,1739217042230,-500.0,0.00010958,2]
[352646431,1739217042240,-1491.31,0.00010958,2]
[352646433,1739217042250,-837.21,0.00010958,2]
[352646435,1739217042259,-500.0,0.00010958,2]
[352646437,1739217042269,-500.0,0.00010958,2]
[352646439,1739217042279,-1019.21,0.00010958,2]
[352646441,1739217042288,-500.0,0.00010958,2]
[352646443,1739217042297,-500.0,0.00010958,2]
[352646445,1739217042307,-2726.72,0.00010958,2]
[352646447,1739217042316,-1880.79,0.00010958,2]
[352646449,1739217042325,-500.0,0.00010958,2]
[352646451,1739217042336,-517.16,0.00010958,2]
[352646453,1739217042345,-1527.87,0.00010958,2]
[352646456,1739217042355,-2139.45,0.00010958,2]
[352646458,1739217042365,-500.0,0.00010958,2]
[352646459,1739217042375,-500.0,0.00010958,2]
[352646460,1739217042385,-500.0,0.00010958,2]
[352646461,1739217042394,-500.0,0.00010958,2]
[352646462,1739217042404,-4291.63,0.00010958,2]
[352646463,1739217042414,-500.0,0.00010958,2]
[352646464,1739217042424,-1061.69,0.00010958,2]
[352646465,1739217042433,-503.85334746,0.00010958,2]
[352646466,1739217042443,-500.0,0.00010958,2]
[352646467,1739217042454,-500.0,0.00010958,2]
[352646469,1739217042463,-860.76,0.00010958,2]
[352646471,1739217042473,-500.0,0.00010958,2]
[352646473,1739217042482,-2344.73,0.00010958,2]
[352646474,1739217042492,-500.0,0.00010958,2]
[352646476,1739217042503,-1443.4,0.00010958,2]
[352646478,1739217042512,-500.0,0.00010958,2]
[352646480,1739217042523,-500.0,0.00010958,2]
[352646482,1739217042533,-500.0,0.00010958,2]
[352646484,1739217042546,-3176.66,0.00010958,2]
[352646486,1739217042557,-4387.49,0.00010958,2]
[352646488,1739217042566,-8593.09,0.00010958,2]
[352646490,1739217042575,-500.0,0.00010958,2]
[352646492,1739217042587,-500.0,0.00010958,2]
[352646494,1739217042596,-2245.56,0.00010958,2]
[352646496,1739217042605,-3099.9,0.00010958,2]
[352646500,1739217042615,-500.0,0.00010958,2]
[352646503,1739217042626,-1243.47,0.00010958,2]
[352646506,1739217042636,-500.0,0.00010958,2]
[352646510,1739217042646,-500.0,0.00010958,2]
[352646515,1739217042656,-500.0,0.00010958,2]
[352646518,1739217042666,-500.0,0.00010958,2]
[352646521,1739217042676,-1144.1,0.00010958,2]
[352646524,1739217042687,-500.0,0.00010958,2]
[352646526,1739217042697,-7758.75,0.00010958,2]
[352646528,1739217042706,-1954.77,0.00010958,2]
[352646530,1739217042717,-257.71,0.00010958,2]
[352646533,1739217042727,-500.0,0.00010958,2]
[352646535,1739217042736,-500.0,0.00010958,2]
[352646538,1739217042746,-493.08390122,0.00010958,2]
[352646541,1739217042756,-500.0,0.00010958,2]
[352646544,1739217042765,-500.0,0.00010958,2]
[352646547,1739217042776,-500.0,0.00010958,2]
[352646549,1739217042786,-2839.44,0.00010958,2]
[352646550,1739217042800,-500.0,0.00010958,2]
[352646552,1739217042810,-500.0,0.00010958,2]
[352646555,1739217042819,-500.0,0.00010958,2]
[352646558,1739217042828,-500.0,0.00010958,2]
[352646560,1739217042837,-2675.13,0.00010958,2]
[352646562,1739217042848,-505.81,0.00010958,2]
[352646564,1739217042858,-631.34,0.00010958,2]
[352646602,1739217043023,-2178.42,0.00010958,2]
[352646605,1739217043033,-500.0,0.00010958,2]
[352646607,1739217043042,-500.0,0.00010958,2]
[352646610,1739217043051,-1372.0,0.00010958,2]
[352646613,1739217043061,-500.0,0.00010958,2]